fUST/lending_fUST_20250715
["ID","MTS","AMOUNT","RATE_DAILY","PERIOD"]
[372228301,1752557448022,-560.67,0.00021917,3]
[372228303,1752557448031,-1245.686768,0.00021917,2]
[372228306,1752557448043,-873.4,0.00021917,3]
[372228308,1752557448051,-460.0,0.00021917,3]
[372228310,1752557448061,-487.63,0.00021917,3]
[372228312,1752557448071,-460.0,0.00021917,3]
[372228314,1752557448082,-1245.686768,0.00021917,2]
[372228316,1752557448093,-816.62,0.00021917,3]
[372228318,1752557448102,-2620.63,0.00021917,3]
[372228320,1752557448111,-460.0,0.00021917,3]
[372228322,1752557448122,-151.0,0.00021917,2]
[372228324,1752557448131,-460.0,0.00021917,3]
[372228326,1752557448140,-151.0,0.00021917,2]
[372228328,1752557448150,-1536.82,0.00021917,3]
[372228330,1752557448160,-460.0,0.00021917,3]
[372228332,1752557448169,-151.0,0.00021917,2]
[372228334,1752557448178,-460.0,0.00021917,3]
[372228336,1752557448189,-151.0,0.00021917,2]
[372228338,1752557448198,-460.0,0.00021917,3]
[372228340,1752557448208,-460.0,0.00021917,3]
[372228342,1752557448217,-460.0,0.00021917,3]
[372228343,1752557448227,-151.0,0.00021917,2]
[372228346,1752557448237,-460.0,0.00021917,3]
[372228348,1752557448247,-4493.21,0.00021917,3]
[372228350,1752557448256,-472.48,0.00021917,3]
[372228352,1752557448266,-986.63,0.00021917,3]
[372228354,1752557448275,-1262.48,0.00021917,3]
[372228355,1752557448285,-487.74,0.00021917,3]
[372228357,1752557448294,-3866.61,0.00021917,3]
[372228359,1752557448303,-460.0,0.00021917,3]
[372228361,1752557448313,-3791.12,0.00021917,3]
[372228364,1752557448322,-482.44,0.00021917,3]
[372228366,1752557448331,-205.82578043,0.00021917,3]
[372228368,1752557448344,-762.38421957,0.00021917,3]
[372228370,1752557448353,-129.40638751,0.00021917,3]
[372228428,1752557448910,-151.0,0.00020821,3]
[372228430,1752557448920,-127.10000003,0.00021096,2]
[372228432,1752557448932,-262.15090687,0.00021096,2]
[372228434,1752557448941,-180.7853962,0.00021096,2]
[372228436,1752557448951,-7706.81518579,0.00021387,2]
[372228438,1752557448960,-525.51022752,0.00021596,2]
[372228440,1752557448970,-151.0,0.00021643,2]
[372228442,1752557448980,-596.20361249,0.00021917,3]
[372228444,1752557448990,-956.49,0.00021917,3]
[372228446,1752557448999,-2428.79884361,0.00021917,3]
[372228505,1752557516422,181.0,0.00013425,3]
[372228506,1752557700211,150.0,0.00017723,2]
[372228508,1752557835174,163.0,0.00014,3]
[372228509,1752558150209,157.0,0.00014493,3]
[372228510,1752558336123,-420.11759231,0.00019178,2]
[372228511,1752558428107,-228.42002969,0.00019178,2]
[372228512,1752558429125,-2231.69789911,0.00019178,2]
[372228513,1752558429147,-300.0,0.00019213,2]
[372228514,1752558429169,-300.0,0.00019213,2]
[372228515,1752558429201,-10000.0,0.00019214,2]
[372228516,1752558429224,-255.84239417,0.00019716,2]
[372228517,1752558429246,-1909.37297474,0.00019726,2]
[372228518,1752558452076,-956.43620477,0.00019726,2]
[372228519,1752558564124,-500.0,0.00019397,2]
[372228520,1752558564147,-187.52977,0.00019429,2]
[372228521,1752558564169,-253.02135606,0.00019725,2]
[372228522,1752558567081,-46.97864394,0.00019725,2]
[372228523,1752558567103,-8986.67673848,0.00019726,2]
[372228528,1752558624054,1724.19,0.00022986,30]
[372228576,1752558632697,-500.0,0.00019397,2]
[372228577,1752558632707,-300.0,0.00019725,2]
[372228579,1752558632716,-2893.75658828,0.00019726,2]
[372228584,1752558632756,-8629.52745033,0.00019726,2]
[372228586,1752558632765,-230.0,0.00019726,2]
[372228588,1752558632775,-323.86505539,0.00019817,2]
[372228590,1752558632784,-5927.23768801,0.0002,2]
[372228592,1752558632794,-153.0,0.000205,2]
[372228594,1752558632804,-153.0,0.000205,2]
[372228596,1752558632813,-153.0,0.000205,2]
[372228597,1752558632822,-553.18,0.00020537,3]
[372228598,1752558632832,-500.0,0.00020546,2]
[372228599,1752558632842,-500.0,0.00020546,2]
[372228600,1752558632851,-201.13351356,0.00020546,2]
[372228601,1752558632862,-500.0,0.00020546,2]
[372228602,1752558632872,-229.59428424,0.00020546,2]
[372228603,1752558632881,-500.0,0.00020546,2]
[372228604,1752558632891,-500.0,0.00020546,2]
[372228605,1752558632901,-500.0,0.00020546,2]
[372228606,1752558632911,-500.0,0.00020546,2]
[372228607,1752558632920,-500.0,0.00020546,2]
[372228608,1752558632930,-500.0,0.00020546,2]
[372228609,1752558632940,-500.0,0.00020546,2]
[372228610,1752558632950,-500.0,0.00020546,2]
[372228611,1752558632960,-500.0,0.00020546,2]
[372228612,1752558632970,-500.0,0.00020546,2]
[372228613,1752558632981,-500.0,0.00020546,2]
[372228614,1752558632991,-500.0,0.00020546,2]
[372228615,1752558633002,-500.0,0.00020546,2]
[372228616,1752558633012,-500.0,0.00020546,2]
[372228617,1752558633021,-500.0,0.00020546,2]
[372228618,1752558633031,-500.0,0.00020546,2]
[372228619,1752558633040,-500.0,0.00020546,2]
[372228620,1752558633050,-500.0,0.00020546,2]
[372228621,1752558633060,-423.22676144,0.00020546,2]
[372228622,1752558633070,-500.0,0.00020546,2]
[372228623,1752558633079,-500.0,0.00020546,2]
[372228624,1752558633088,-500.0,0.00020546,2]
[372228625,1752558633098,-500.0,0.00020546,2]
[372228626,1752558633107,-500.0,0.00020546,2]
[372228627,1752558633117,-500.0,0.00020546,2]
[372228628,1752558633126,-500.0,0.00020546,2]
[372228629,1752558633136,-638.82559192,0.00020546,2]
[372228630,1752558633145,-500.0,0.00020546,2]
[372228631,1752558633155,-218.49195012,0.00020546,2]
[372228632,1752558633164,-415.28777544,0.00020546,2]
[372228633,1752558633174,-500.0,0.00020546,2]
[372228634,1752558633184,-500.0,0.00020546,2]
[372228635,1752558633193,-500.0,0.00020546,2]
[372228636,1752558633203,-500.0,0.00020546,2]
[372228637,1752558633212,-603.0098547,0.00020546,2]
[372228638,1752558633222,-500.0,0.00020546,2]
[372228639,1752558633231,-500.0,0.00020546,2]
[372228640,1752558633240,-500.0,0.00020546,2]
[372228641,1752558633250,-460.0,0.00020547,3]
[372228642,1752558633260,-460.0,0.00020547,3]
[372228643,1752558633269,-460.0,0.00020547,3]
[372228644,1752558633279,-462.26315546,0.00020547,3]
[372228645,1752558633288,-460.0,0.00020547,3]
[372228646,1752558633298,-461.93658956,0.00020547,3]
[372228647,1752558633307,-460.0,0.00020547,3]
[372228648,1752558633316,-464.217621,0.00020547,3]
[372228649,1752558633325,-476.51512813,0.00020547,3]
[372228650,1752558633335,-469.46523406,0.00020547,3]
[372228651,1752558633344,-457.14844608,0.00020547,3]
[372228652,1752558633354,-460.0,0.00020547,3]
[372228653,1752558633364,-460.0,0.00020547,3]
[372228654,1752558633373,-219.53975283,0.00020547,3]
[372228655,1752558633383,-460.0,0.00020547,3]
[372228656,1752558633392,-460.0,0.00020547,3]
[372228657,1752558633402,-541.03271934,0.00020547,3]
[372228658,1752558633412,-463.79585913,0.00020547,3]
[372228659,1752558633421,-462.87734522,0.00020547,3]
[372228660,1752558633430,-170.87422077,0.00020547,3]
[372228661,1752558633440,-460.0,0.00020547,3]
[372228662,1752558633449,-460.0,0.00020547,3]
[372228663,1752558633462,-500.0,0.00020547,3]
[372228664,1752558633472,-500.0,0.00020547,3]
[372228665,1752558633481,-460.0,0.00020547,3]
[372228666,1752558633490,-460.0,0.00020547,3]
[372228667,1752558633499,-460.0,0.00020547,3]
[372228668,1752558633509,-463.12892515,0.00020547,3]
[372228669,1752558633519,-460.93439165,0.00020547,3]
[372228670,1752558633528,-339.11524837,0.00020547,3]
[372228671,1752558633538,-460.0,0.00020547,3]
[372228672,1752558633554,-460.0,0.00020547,3]
[372228673,1752558633564,-460.0,0.00020547,3]
[372228674,1752558633573,-460.0,0.00020547,3]
[372228675,1752558633583,-460.0,0.00020547,3]
[372228676,1752558633594,-409.52529934,0.00020547,3]
[372228677,1752558633603,-460.0,0.00020547,3]
[372228678,1752558633613,-460.0,0.00020547,3]
[372228679,1752558633624,-460.0,0.00020547,3]
[372228680,1752558633634,-460.0,0.00020547,3]
[372228681,1752558633644,-186.58256409,0.00020547,3]
[372228682,1752558633653,-460.0,0.00020547,3]
[372228683,1752558633662,-460.0,0.00020547,3]
[372228684,1752558633672,-449.82524885,0.00020547,3]
[372228685,1752558633682,-462.08102748,0.00020547,3]
[372228686,1752558633691,-460.0,0.00020547,3]
[372228687,1752558633700,-461.9799767,0.00020547,3]
[372228688,1752558633710,-460.0,0.00020547,3]
[372228689,1752558633719,-460.0,0.00020547,3]
[372228690,1752558633728,-36.30938389,0.00020547,3]
[372228691,1752558633872,-423.69061611,0.00020547,3]
[372228692,1752558633882,-460.0,0.00020547,3]
[372228693,1752558633892,-460.0,0.00020547,3]
[372228694,1752558633902,-463.18192409,0.00020547,3]
[372228695,1752558633912,-460.0,0.00020547,3]
[372228696,1752558633921,-460.0,0.00020547,3]
[372228697,1752558633931,-569.21,0.00020547,3]
[372228698,1752558633941,-301.41598011,0.00020547,3]
[372228699,1752558633950,-464.69035154,0.00020547,3]
[372228700,1752558633960,-460.0,0.00020547,3]
[372228701,1752558633970,-460.0,0.00020547,3]
[372228702,1752558633980,-460.0,0.00020547,3]
[372228703,1752558633990,-522.1619707,0.00020547,3]
[372228704,1752558634000,-463.42744652,0.00020547,3]
[372228705,1752558634011,-460.0,0.00020547,3]
[372228706,1752558634021,-469.6189657,0.00020547,3]
[372228707,1752558634030,-481.24664277,0.00020547,3]
[372228708,1752558634040,-460.0,0.00020547,3]
[372228709,1752558634051,-460.0,0.00020547,3]
[372228710,1752558634061,-460.0,0.00020547,3]
[372228711,1752558634071,-151.46172895,0.00020547,3]
[372228712,1752558634080,-460.0,0.00020547,3]
[372228713,1752558634091,-460.0,0.00020547,3]
[372228714,1752558634100,-460.0,0.00020547,3]
[372228715,1752558634110,-460.0,0.00020547,3]
[372228716,1752558634120,-463.35653965,0.00020547,3]
[372228717,1752558634129,-460.0,0.00020547,3]
[372228718,1752558634139,-460.0,0.00020547,3]
[372228719,1752558634148,-161.553595,0.00020547,3]
[372228720,1752558634157,-460.0,0.00020547,3]
[372228721,1752558634166,-470.58252024,0.00020547,3]
[372228722,1752558634176,-460.0,0.00020547,3]
[372228723,1752558634186,-460.0,0.00020547,3]
[372228724,1752558634195,-460.0,0.00020547,3]
[372228725,1752558634205,-460.0,0.00020547,3]
[372228726,1752558634214,-460.0,0.00020547,3]
[372228727,1752558634224,-464.47621546,0.00020547,3]
[372228728,1752558634233,-460.0,0.00020547,3]
[372228729,1752558634243,-460.0,0.00020547,3]
[372228730,1752558634252,-460.0,0.00020547,3]
[372228731,1752558634262,-460.0,0.00020547,3]
[372228732,1752558634271,-460.0,0.00020547,3]
[372228733,1752558634281,-200.18986227,0.00020547,3]
[372228734,1752558634290,-500.0,0.00020547,3]
[372228735,1752558634303,-500.0,0.00020547,3]
[372228736,1752558634312,-500.0,0.00020547,3]
[372228737,1752558634322,-500.0,0.00020547,3]
[372228738,1752558634331,-500.0,0.00020547,3]
[372228739,1752558634340,-460.0,0.00020547,3]
[372228740,1752558634350,-460.0,0.00020547,3]
[372228741,1752558634359,-449.26862842,0.00020547,3]
[372228742,1752558634369,-460.0,0.00020547,3]
[372228743,1752558634378,-463.71585953,0.00020547,3]
[372228744,1752558634387,-53.90813364,0.00020547,3]
[372228748,1752558638629,-406.09186636,0.00020547,3]
[372228749,1752558638639,-604.17687746,0.00020547,3]
[372228750,1752558638648,-460.0,0.00020547,3]
[372228751,1752558638658,-544.34978863,0.00020547,3]
[372228752,1752558638687,-107.64021137,0.00020547,3]
[372228753,1752558638697,-460.0,0.00020547,3]
[372228754,1752558638706,-460.0,0.00020547,3]
[372228755,1752558638715,-460.0,0.00020547,3]
[372228756,1752558638725,-339.41000061,0.00020547,3]
[372228757,1752558638734,-460.0,0.00020547,3]
[372228758,1752558638743,-460.0,0.00020547,3]
[372228759,1752558638751,-460.0,0.00020547,3]
[372228760,1752558638760,-460.0,0.00020547,3]
[372228761,1752558638769,-460.0,0.00020547,3]
[372228762,1752558638778,-460.0,0.00020547,3]
[372228763,1752558638787,-460.0,0.00020547,3]
[372228764,1752558638796,-460.0,0.00020547,3]
[372228765,1752558638806,-460.0,0.00020547,3]
[372228766,1752558638815,-465.50452934,0.00020547,3]
[372228767,1752558638824,-460.0,0.00020547,3]
[372228768,1752558638833,-506.13,0.00020547,3]
[372228769,1752558638842,-460.0,0.00020547,3]
[372228770,1752558638851,-460.0,0.00020547,3]
[372228771,1752558638860,-460.0,0.00020547,3]
[372228772,1752558638869,-523.39517473,0.00020547,3]
[372228773,1752558638878,-467.73022398,0.00020547,3]
[372228774,1752558638887,-539.43,0.00020547,3]
[372228775,1752558638896,-460.0,0.00020547,3]
[372228776,1752558638905,-460.0,0.00020547,3]
[372228777,1752558638914,-3964.64,0.00020547,3]
[372228778,1752558638923,-1109.05,0.00020547,3]
[372228779,1752558638932,-563.76,0.00020547,3]
[372228780,1752558638941,-1933.38,0.00020547,3]
[372228781,1752558638949,-460.0,0.00020547,3]
[372228782,1752558638958,-4238.59,0.00020547,3]
[372228783,1752558638967,-638.32,0.00020547,3]
[372228784,1752558638976,-460.0,0.00020547,3]
[372228785,1752558638984,-460.0,0.00020547,3]
[372228786,1752558638994,-323.97468572,0.00020547,3]
[372228787,1752558639006,-136.02531428,0.00020547,3]
[372228788,1752558639015,-863.3,0.00020547,3]
[372228789,1752558639023,-39.92468572,0.00020547,3]
[372228790,1752558639035,-120.07531428,0.00020547,3]
[372228791,1752558639044,-460.0,0.00020547,3]
[372228792,1752558639054,-460.0,0.00020547,3]
[372228793,1752558639063,-460.0,0.00020547,3]
[372228794,1752558639073,-460.0,0.00020547,3]
[372228795,1752558639082,-912.42468572,0.00020547,3]
[372228796,1752558639102,-68.92531428,0.00020547,3]
[372228797,1752558639111,-460.0,0.00020547,3]
[372228798,1752558639121,-2891.0,0.00020547,3]
[372228799,1752558639130,-460.0,0.00020547,3]
[372228800,1752558639139,-3818.73,0.00020547,3]
[372228801,1752558639148,-460.0,0.00020547,3]
[372228802,1752558639158,-568.34654922,0.00020547,3]
[372228803,1752558639167,-460.0,0.00020547,3]
[372228804,1752558639176,-460.0,0.00020547,3]
[372228805,1752558639185,-460.0,0.00020547,3]
[372228806,1752558639195,-587.22547254,0.00020547,3]
[372228807,1752558639204,-460.0,0.00020547,3]
[372228808,1752558639214,-423.67118016,0.00020547,3]
[372228809,1752558639223,-460.0,0.00020547,3]
[372228810,1752558639232,-460.0,0.00020547,3]
[372228811,1752558639242,-460.0,0.00020547,3]
[372228812,1752558639253,-1407.64,0.00020547,3]
[372228813,1752558639262,-1770.13,0.00020547,3]
[372228814,1752558639271,-460.0,0.00020547,3]
[372228815,1752558639281,-460.0,0.00020547,3]
[372228816,1752558639291,-460.0,0.00020547,3]
[372228817,1752558639302,-180.35924725,0.00020547,3]
[372228818,1752558639312,-665.01,0.00020547,3]
[372228819,1752558639321,-460.0,0.00020547,3]
[372228820,1752558639331,-460.0,0.00020547,3]
[372228821,1752558639340,-460.0,0.00020547,3]
[372228822,1752558639350,-460.0,0.00020547,3]
[372228823,1752558639360,-590.96505809,0.00020547,3]
[372228824,1752558639369,-460.0,0.00020547,3]
[372228825,1752558639379,-1892.63,0.00020547,3]
[372228826,1752558639389,-460.0,0.00020547,3]
[372228827,1752558639398,-460.0,0.00020547,3]
[372228828,1752558639408,-460.0,0.00020547,3]
[372228829,1752558639417,-460.0,0.00020547,3]
[372228830,1752558639427,-460.0,0.00020547,3]
[372228831,1752558639436,-460.0,0.00020547,3]
[372228832,1752558639445,-460.0,0.00020547,3]
[372228833,1752558639455,-460.0,0.00020547,3]
[372228834,1752558639464,-460.0,0.00020547,3]
[372228835,1752558639474,-460.0,0.00020547,3]
[372228836,1752558639483,-460.0,0.00020547,3]
[372228837,1752558639493,-1344.04,0.00020547,3]
[372228838,1752558639502,-460.0,0.00020547,3]
[372228839,1752558639512,-460.0,0.00020547,3]
[372228840,1752558639522,-837.0,0.00020547,3]
[372228841,1752558639532,-460.0,0.00020547,3]
[372228842,1752558639546,-460.0,0.00020547,3]
[372228843,1752558639559,-460.0,0.00020547,3]
[372228844,1752558639569,-937.5,0.00020547,3]
[372228845,1752558639578,-537.31,0.00020547,3]
[372228846,1752558639589,-460.0,0.00020547,3]
[372228847,1752558639598,-486.48,0.00020547,3]
[372228848,1752558639607,-517.57,0.00020547,3]
[372228849,1752558639617,-460.0,0.00020547,3]
[372228850,1752558639627,-505.42,0.00020547,3]
[372228851,1752558639637,-460.0,0.00020547,3]
[372228852,1752558639646,-460.0,0.00020547,3]
[372228853,1752558639656,-2330.64,0.00020547,3]
[372228854,1752558639666,-214.37129034,0.00020547,3]
[372228855,1752558639677,-2683.94,0.00020547,3]
[372228856,1752558639687,-460.0,0.00020547,3]
[372228857,1752558639696,-460.0,0.00020547,3]
[372228858,1752558639707,-460.0,0.00020547,3]
[372228859,1752558639716,-460.0,0.00020547,3]
[372228860,1752558639727,-731.9,0.00020547,3]
[372228861,1752558639737,-460.0,0.00020547,3]
[372228862,1752558639746,-460.0,0.00020547,3]
[372228863,1752558639756,-460.0,0.00020547,3]
[372228864,1752558639765,-460.0,0.00020547,3]
[372228865,1752558639775,-460.0,0.00020547,3]
[372228866,1752558639784,-460.0,0.00020547,3]
[372228867,1752558639794,-461.41627627,0.00020547,3]
[372228868,1752558639804,-460.0,0.00020547,3]
[372228869,1752558639814,-460.0,0.00020547,3]
[372228870,1752558639824,-782.59,0.00020547,3]
[372228871,1752558639833,-460.0,0.00020547,3]
[372228872,1752558639842,-460.0,0.00020547,3]
[372228873,1752558639852,-462.8780156,0.00020547,3]
[372228874,1752558639862,-4178.47,0.00020547,3]
[372228875,1752558639871,-370.96758566,0.00020547,3]
[372228876,1752558639880,-460.0,0.00020547,3]
[372228877,1752558639890,-469.65621088,0.00020547,3]
[372228878,1752558639900,-466.86937732,0.00020547,3]
[372228879,1752558639909,-1606.95,0.00020547,3]
[372228880,1752558639920,-462.34,0.00020547,3]
[372228881,1752558639930,-460.0,0.00020547,3]
[372228882,1752558639941,-460.0,0.00020547,3]
[372228883,1752558639950,-460.0,0.00020547,3]
[372228884,1752558639960,-460.0,0.00020547,3]
[372228885,1752558639969,-916.64,0.00020547,3]
[372228886,1752558639978,-500.0,0.00020547,3]
[372228887,1752558639988,-521.6,0.00020547,3]
[372228888,1752558639997,-460.0,0.00020547,3]
[372228893,1752558640132,-500.0,0.00020573,2]
[372228894,1752558640142,-2371.86,0.000206,2]
[372228895,1752558640151,-153.0,0.000206,2]
[372228896,1752558640161,-153.0,0.000206,2]
[372228898,1752558640170,-184.38,0.00020663,3]
[372228899,1752558640180,-1363.11446676,0.00020673,2]
[372228901,1752558640189,-2568.93839527,0.00020673,2]
[372228903,1752558640199,-214.516,0.00020684,2]
[372228905,1752558640208,-258.54821691,0.0002072,2]
[372228908,1752558640218,-500.0,0.0002072,2]
[372228910,1752558640228,-239.76126914,0.0002072,2]
[372228912,1752558640238,-370000.0,0.00020721,2]
[372228914,1752558640248,-500.50835069,0.00020773,2]
[372228916,1752558640258,-532.62623027,0.00020773,2]
[372228918,1752558640267,-500.0,0.00020773,2]
[372228920,1752558640276,-500.0,0.00020773,2]
[372228922,1752558640287,-500.0,0.00020773,2]
[372228924,1752558640297,-11875.6729872,0.00020796,2]
[372228926,1752558640307,-28115.12,0.000208,2]
[372228927,1752558640316,-4956.43,0.000208,2]
[372228929,1752558640326,-460.0,0.00020821,3]
[372228931,1752558640335,-460.0,0.00020821,3]
[372228933,1752558640345,-460.0,0.00020821,3]
[372228935,1752558640355,-460.0,0.00020821,3]
[372228937,1752558640364,-460.0,0.00020821,3]
[372228939,1752558640374,-460.0,0.00020821,3]
[372228941,1752558640383,-460.0,0.00020821,3]
[372228943,1752558640392,-520.82161568,0.00020821,3]
[372228945,1752558640402,-471.45373568,0.00020821,3]
[372228947,1752558640412,-462.27660395,0.00020821,3]
[372228949,1752558640421,-460.0,0.00020821,3]
[372228951,1752558640430,-460.0,0.00020821,3]
[372228953,1752558640439,-460.0,0.00020821,3]
[372228955,1752558640449,-469.10008909,0.00020821,3]
[372228957,1752558640458,-460.0,0.00020821,3]
[372228959,1752558640467,-569.21,0.00020821,3]
[372228961,1752558640476,-460.0,0.00020821,3]
[372228963,1752558640485,-460.0,0.00020821,3]
[372228965,1752558640495,-460.0,0.00020821,3]
[372228967,1752558640504,-460.0,0.00020821,3]
[372228969,1752558640514,-460.0,0.00020821,3]
[372228971,1752558640523,-460.0,0.00020821,3]
[372228973,1752558640532,-460.0,0.00020821,3]
[372228974,1752558640542,-460.0,0.00020821,3]
[372228976,1752558640555,-460.0,0.00020821,3]
[372228978,1752558640565,-460.0,0.00020821,3]
[372228980,1752558640574,-460.0,0.00020821,3]
[372228982,1752558640584,-460.0,0.00020821,3]
[372228984,1752558640594,-460.0,0.00020821,3]
[372228987,1752558640604,-651.99,0.00020821,3]
[372228990,1752558640614,-460.0,0.00020821,3]
[372228993,1752558640624,-460.0,0.00020821,3]
[372228996,1752558640634,-460.0,0.00020821,3]
[372228999,1752558640644,-460.0,0.00020821,3]
[372229002,1752558640654,-460.0,0.00020821,3]
[372229005,1752558640663,-460.0,0.00020821,3]
[372229008,1752558640672,-460.0,0.00020821,3]
[372229011,1752558640681,-460.0,0.00020821,3]
[372229014,1752558640691,-460.0,0.00020821,3]
[372229017,1752558640700,-460.0,0.00020821,3]
[372229020,1752558640710,-506.13,0.00020821,3]
[372229023,1752558640719,-460.0,0.00020821,3]
[372229026,1752558640729,-539.43,0.00020821,3]
[372229029,1752558640738,-460.0,0.00020821,3]
[372229032,1752558640748,-460.0,0.00020821,3]
[372229035,1752558640757,-3964.64,0.00020821,3]
[372229038,1752558640766,-1109.05,0.00020821,3]
[372229041,1752558640776,-563.76,0.00020821,3]
[372229044,1752558640785,-1933.38,0.00020821,3]
[372229047,1752558640794,-4238.59,0.00020821,3]
[372229050,1752558640804,-638.32,0.00020821,3]
[372229052,1752558640814,-460.0,0.00020821,3]
[372229055,1752558640823,-460.0,0.00020821,3]
[372229059,1752558640834,-863.3,0.00020821,3]
[372229062,1752558640844,-460.0,0.00020821,3]
[372229065,1752558640853,-981.35,0.00020821,3]
[372229068,1752558640863,-2891.0,0.00020821,3]
[372229071,1752558640873,-3818.73,0.00020821,3]
[372229074,1752558640882,-470.36937149,0.00020821,3]
[372229076,1752558640892,-473.8056111,0.00020821,3]
[372229078,1752558640901,-460.0,0.00020821,3]
[372229080,1752558640910,-460.0,0.00020821,3]
[372229082,1752558640919,-460.0,0.00020821,3]
[372229085,1752558640929,-460.0,0.00020821,3]
[372229089,1752558640940,-460.0,0.00020821,3]
[372229092,1752558640950,-1407.64,0.00020821,3]
[372229095,1752558640959,-1770.13,0.00020821,3]
[372229098,1752558640969,-460.0,0.00020821,3]
[372229101,1752558640978,-460.0,0.00020821,3]
[372229103,1752558640987,-665.01,0.00020821,3]
[372229106,1752558640997,-460.0,0.00020821,3]
[372229109,1752558641006,-460.0,0.00020821,3]
[372229113,1752558641016,-460.0,0.00020821,3]
[372229116,1752558641025,-1892.63,0.00020821,3]
[372229119,1752558641035,-460.0,0.00020821,3]
[372229122,1752558641044,-460.0,0.00020821,3]
[372229125,1752558641054,-256.64130121,0.00020821,3]
[372229128,1752558641063,-460.0,0.00020821,3]
[372229131,1752558641072,-460.0,0.00020821,3]
[372229134,1752558641082,-542.76689706,0.00020821,3]
[372229137,1752558641091,-460.0,0.00020821,3]
[372229140,1752558641100,-460.0,0.00020821,3]
[372229143,1752558641110,-460.0,0.00020821,3]
[372229146,1752558641119,-1344.04,0.00020821,3]
[372229149,1752558641129,-460.0,0.00020821,3]
[372229151,1752558641138,-837.0,0.00020821,3]
[372229153,1752558641147,-460.0,0.00020821,3]
[372229155,1752558641156,-460.0,0.00020821,3]
[372229157,1752558641165,-460.0,0.00020821,3]
[372229159,1752558641173,-937.5,0.00020821,3]
[372229161,1752558641183,-537.31,0.00020821,3]
[372229162,1752558641191,-486.48,0.00020821,3]
[372229164,1752558641200,-517.57,0.00020821,3]
[372229168,1752558641210,-460.0,0.00020821,3]
[372229171,1752558641219,-505.42,0.00020821,3]
[372229174,1752558641228,-460.0,0.00020821,3]
[372229177,1752558641238,-2330.64,0.00020821,3]
[372229180,1752558641247,-2683.94,0.00020821,3]
[372229183,1752558641255,-460.0,0.00020821,3]
[372229186,1752558641265,-460.0,0.00020821,3]
[372229189,1752558641274,-731.9,0.00020821,3]
[372229191,1752558641283,-460.0,0.00020821,3]
[372229195,1752558641293,-460.0,0.00020821,3]
[372229198,1752558641303,-460.0,0.00020821,3]
[372229201,1752558641312,-460.0,0.00020821,3]
[372229203,1752558641320,-460.0,0.00020821,3]
[372229206,1752558641330,-460.0,0.00020821,3]
[372229209,1752558641339,-460.0,0.00020821,3]
[372229212,1752558641349,-782.59,0.00020821,3]
[372229215,1752558641358,-460.0,0.00020821,3]
[372229218,1752558641367,-460.0,0.00020821,3]
[372229220,1752558641377,-4178.47,0.00020821,3]
[372229222,1752558641386,-1606.95,0.00020821,3]
[372229224,1752558641395,-462.34,0.00020821,3]
[372229226,1752558641404,-460.0,0.00020821,3]
[372229228,1752558641413,-460.0,0.00020821,3]
[372229230,1752558641423,-460.0,0.00020821,3]